[Event "December 19 Late 2023"]
[Site "https://www.chess.com"]
[Date "2023.12.19"]
[Round "5"]
[White "Bortnyk, Olexandr"]
[Black "Gokerkan, Cem Kaan"]
[Result "1-0"]
[Board "12"]
[TimeControl "180+1"]
[WhiteFideId "14120828"]
[BlackFideId "6336760"]
[WhiteElo "2731"]
[BlackElo "2365"]
[WhiteTeam "UKR"]
[BlackTeam "TUR"]
[WhiteClock "0:00:43"]
[BlackClock "0:00:32"]

1. e4 {[%clk 0:03:00]}  c5 {[%clk 0:02:58]} 2. c3 {[%clk 0:03:00]}  Nf6 {[%clk 0:02:58]} 3. e5 {[%clk 0:03:01]}  Nd5 {[%clk 0:02:58]} 4. d4 {[%clk 0:03:01]}  cxd4 {[%clk 0:02:59]} 5. Nf3 {[%clk 0:03:02]}  d6 {[%clk 0:02:59]} 6. cxd4 {[%clk 0:03:02]}  dxe5 {[%clk 0:02:58]} 7. Nxe5 {[%clk 0:02:46]}  Nc6 {[%clk 0:02:55]} 8. Bc4 {[%clk 0:02:47]}  e6 {[%clk 0:02:42]} 9. O-O {[%clk 0:02:46]}  Bd6 {[%clk 0:02:34]} 10. Nf3 {[%clk 0:02:44]}  O-O {[%clk 0:02:33]} 11. Nc3 {[%clk 0:02:42]}  Nxc3 {[%clk 0:02:28]} 12. bxc3 {[%clk 0:02:43]}  b6 {[%clk 0:02:29]} 13. d5 {[%clk 0:02:38]}  Na5 {[%clk 0:02:22]} 14. Bd3 {[%clk 0:02:38]}  exd5 {[%clk 0:02:19]} 15. Ng5 {[%clk 0:02:25]}  h6 {[%clk 0:01:58]} 16. Qh5 {[%clk 0:02:22]}  Nc4 {[%clk 0:01:17]} 17. Rd1 {[%clk 0:01:29]}  Qf6 {[%clk 0:01:13]} 18. Nh7 {[%clk 0:01:06]}  Qxc3 {[%clk 0:01:10]} 19. Bxh6 {[%clk 0:00:47]}  gxh6 {[%clk 0:01:11]} 20. Qxh6 {[%clk 0:00:44]}  Be7 {[%clk 0:00:32]} 21. Nf6+ {[%clk 0:00:43]} 1-0

[Event "December 19 Late 2023"]
[Site "https://www.chess.com"]
[Date "2023.12.19"]
[Round "5"]
[White "Crasyhealer"]
[Black "Khismatullin, Denis"]
[Result "1/2-1/2"]
[Board "13"]
[TimeControl "180+1"]
[BlackFideId "4142578"]
[WhiteElo "2475"]
[BlackElo "2552"]
[BlackTeam "RUS"]
[WhiteClock "0:00:13"]
[BlackClock "0:00:04"]

1. c4 {[%clk 0:02:57]}  c5 {[%clk 0:02:58]} 2. Nc3 {[%clk 0:02:52]}  g6 {[%clk 0:02:58]} 3. Nf3 {[%clk 0:02:53]}  Bg7 {[%clk 0:02:58]} 4. d4 {[%clk 0:02:53]}  cxd4 {[%clk 0:02:57]} 5. Nxd4 {[%clk 0:02:54]}  Nc6 {[%clk 0:02:57]} 6. Nc2 {[%clk 0:02:54]}  d6 {[%clk 0:02:54]} 7. e4 {[%clk 0:02:54]}  Bxc3+ {[%clk 0:02:53]} 8. bxc3 {[%clk 0:02:54]}  Nf6 {[%clk 0:02:50]} 9. f3 {[%clk 0:02:50]}  Qa5 {[%clk 0:02:49]} 10. Bd2 {[%clk 0:02:49]}  Be6 {[%clk 0:02:49]} 11. Nd4 {[%clk 0:02:47]}  Rc8 {[%clk 0:02:46]} 12. Rb1 {[%clk 0:02:28]}  b6 {[%clk 0:02:35]} 13. c5 {[%clk 0:02:08]}  Qxc5 {[%clk 0:02:27]} 14. Nxc6 {[%clk 0:02:08]}  Rxc6 {[%clk 0:02:26]} 15. Bb5 {[%clk 0:02:09]}  O-O {[%clk 0:02:19]} 16. Bxc6 {[%clk 0:02:09]}  Qxc6 {[%clk 0:02:19]} 17. O-O {[%clk 0:02:09]}  Bxa2 {[%clk 0:02:18]} 18. Ra1 {[%clk 0:02:08]}  Bc4 {[%clk 0:02:18]} 19. Re1 {[%clk 0:01:51]}  a5 {[%clk 0:02:16]} 20. Bh6 {[%clk 0:01:51]}  Qc5+ {[%clk 0:02:01]} 21. Be3 {[%clk 0:01:44]}  Qc7 {[%clk 0:01:57]} 22. Qd4 {[%clk 0:01:42]}  b5 {[%clk 0:01:52]} 23. Bg5 {[%clk 0:01:32]}  Kg7 {[%clk 0:01:36]} 24. g4 {[%clk 0:01:14]}  h6 {[%clk 0:01:34]} 25. Bxf6+ {[%clk 0:01:13]}  exf6 {[%clk 0:01:34]} 26. h4 {[%clk 0:01:11]}  Re8 {[%clk 0:01:24]} 27. g5 {[%clk 0:01:07]}  hxg5 {[%clk 0:01:24]} 28. hxg5 {[%clk 0:01:08]}  Re6 {[%clk 0:01:23]} 29. f4 {[%clk 0:01:04]}  a4 {[%clk 0:01:17]} 30. gxf6+ {[%clk 0:00:45]}  Rxf6 {[%clk 0:01:14]} 31. Kg2 {[%clk 0:00:39]}  Qc5 {[%clk 0:01:05]} 32. e5 {[%clk 0:00:22]}  Qxd4 {[%clk 0:01:04]} 33. cxd4 {[%clk 0:00:23]}  dxe5 {[%clk 0:01:04]} 34. fxe5 {[%clk 0:00:23]}  Bd5+ {[%clk 0:01:00]} 35. Kg1 {[%clk 0:00:23]}  Ra6 {[%clk 0:00:50]} 36. Reb1 {[%clk 0:00:22]}  Bc4 {[%clk 0:00:47]} 37. d5 {[%clk 0:00:21]}  a3 {[%clk 0:00:38]} 38. d6 {[%clk 0:00:20]}  Kf8 {[%clk 0:00:36]} 39. Kf2 {[%clk 0:00:19]}  a2 {[%clk 0:00:33]} 40. Rh1 {[%clk 0:00:17]}  Ke8 {[%clk 0:00:33]} 41. Ke3 {[%clk 0:00:18]}  b4 {[%clk 0:00:29]} 42. Kd4 {[%clk 0:00:18]}  Be6 {[%clk 0:00:29]} 43. Kc5 {[%clk 0:00:18]}  b3 {[%clk 0:00:27]} 44. Rh2 {[%clk 0:00:19]}  Kd7 {[%clk 0:00:25]} 45. Kb5 {[%clk 0:00:19]}  Ra8 {[%clk 0:00:25]} 46. Rc1 {[%clk 0:00:17]}  Rb8+ {[%clk 0:00:14]} 47. Ka6 {[%clk 0:00:16]}  Rc8 {[%clk 0:00:13]} 48. Ra1 {[%clk 0:00:10]}  Rc2 {[%clk 0:00:09]} 49. Rxc2 {[%clk 0:00:09]}  bxc2 {[%clk 0:00:09]} 50. Kb5 {[%clk 0:00:10]}  g5 {[%clk 0:00:09]} 51. Kb4 {[%clk 0:00:10]}  Kc6 {[%clk 0:00:06]} 52. Kc3 {[%clk 0:00:11]}  Kd5 {[%clk 0:00:06]} 53. d7 {[%clk 0:00:09]}  Bxd7 {[%clk 0:00:05]} 54. Kxc2 {[%clk 0:00:10]}  Kxe5 {[%clk 0:00:05]} 55. Rxa2 {[%clk 0:00:10]}  f5 {[%clk 0:00:05]} 56. Kd2 {[%clk 0:00:11]}  Bc6 {[%clk 0:00:05]} 57. Ra5+ {[%clk 0:00:09]}  Kf4 {[%clk 0:00:04]} 58. Ke2 {[%clk 0:00:09]}  g4 {[%clk 0:00:04]} 59. Kf2 {[%clk 0:00:10]}  g3+ {[%clk 0:00:03]} 60. Kg1 {[%clk 0:00:10]}  Kg4 {[%clk 0:00:03]} 61. Ra6 {[%clk 0:00:10]}  Be4 {[%clk 0:00:03]} 62. Rg6+ {[%clk 0:00:10]}  Kf3 {[%clk 0:00:02]} 63. Rb6 {[%clk 0:00:09]}  f4 {[%clk 0:00:03]} 64. Rb3+ {[%clk 0:00:10]}  Kg4 {[%clk 0:00:03]} 65. Rb4 {[%clk 0:00:11]}  Kf5 {[%clk 0:00:03]} 66. Rb5+ {[%clk 0:00:11]}  Kg4 {[%clk 0:00:03]} 67. Rb4 {[%clk 0:00:12]}  Kf5 {[%clk 0:00:04]} 68. Rb5+ {[%clk 0:00:12]}  Kg4 {[%clk 0:00:04]} 69. Rb4 {[%clk 0:00:13]} 1/2-1/2

[Event "December 19 Late 2023"]
[Site "https://www.chess.com"]
[Date "2023.12.19"]
[Round "5"]
[White "Nakamura, Hikaru"]
[Black "Boruchovsky, Avital"]
[Result "1-0"]
[Board "14"]
[TimeControl "180+1"]
[WhiteFideId "2016192"]
[BlackFideId "2800055"]
[WhiteElo "2874"]
[BlackElo "2450"]
[WhiteTeam "USA"]
[BlackTeam "ISR"]
[WhiteClock "0:01:15"]
[BlackClock "0:00:00"]

1. Nf3 {[%clk 0:03:00]}  d5 {[%clk 0:02:58]} 2. e3 {[%clk 0:03:00]}  Nf6 {[%clk 0:02:56]} 3. b3 {[%clk 0:03:01]}  c5 {[%clk 0:02:54]} 4. Bb2 {[%clk 0:03:00]}  g6 {[%clk 0:02:45]} 5. Bxf6 {[%clk 0:03:00]}  exf6 {[%clk 0:02:45]} 6. c3 {[%clk 0:03:00]}  Be7 {[%clk 0:02:25]} 7. d4 {[%clk 0:03:00]}  b6 {[%clk 0:02:25]} 8. Bb5+ {[%clk 0:02:54]}  Kf8 {[%clk 0:02:25]} 9. O-O {[%clk 0:02:54]}  Kg7 {[%clk 0:02:21]} 10. Be2 {[%clk 0:02:52]}  Be6 {[%clk 0:02:19]} 11. Ne1 {[%clk 0:02:53]}  h5 {[%clk 0:02:09]} 12. Nd3 {[%clk 0:02:52]}  Bd6 {[%clk 0:02:07]} 13. Bf3 {[%clk 0:02:45]}  Nd7 {[%clk 0:01:45]} 14. g3 {[%clk 0:02:38]}  h4 {[%clk 0:01:41]} 15. Nd2 {[%clk 0:02:37]}  Rc8 {[%clk 0:01:39]} 16. Bg2 {[%clk 0:02:35]}  f5 {[%clk 0:01:29]} 17. Rc1 {[%clk 0:02:34]}  Nf6 {[%clk 0:01:29]} 18. dxc5 {[%clk 0:02:30]}  bxc5 {[%clk 0:01:28]} 19. c4 {[%clk 0:02:31]}  hxg3 {[%clk 0:01:12]} 20. hxg3 {[%clk 0:02:32]}  Qg8 {[%clk 0:01:12]} 21. cxd5 {[%clk 0:02:20]}  Qh7 {[%clk 0:01:10]} 22. Re1 {[%clk 0:02:20]}  Bxd5 {[%clk 0:00:52]} 23. Bxd5 {[%clk 0:02:20]}  Nxd5 {[%clk 0:00:25]} 24. Qf3 {[%clk 0:02:18]}  Bxg3 {[%clk 0:00:25]} 25. Kf1 {[%clk 0:02:04]}  Qh1+ {[%clk 0:00:22]} 26. Ke2 {[%clk 0:01:57]}  Qxf3+ {[%clk 0:00:16]} 27. Nxf3 {[%clk 0:01:58]}  Bd6 {[%clk 0:00:16]} 28. Red1 {[%clk 0:01:59]}  Be7 {[%clk 0:00:15]} 29. Rc2 {[%clk 0:01:52]}  Nf6 {[%clk 0:00:15]} 30. Nde5 {[%clk 0:01:49]}  Ne4 {[%clk 0:00:15]} 31. Rd7 {[%clk 0:01:49]}  Kf6 {[%clk 0:00:14]} 32. Rxa7 {[%clk 0:01:48]}  g5 {[%clk 0:00:10]} 33. Nd2 {[%clk 0:01:46]}  Nd6 {[%clk 0:00:05]} 34. Ndc4 {[%clk 0:01:44]}  Rh2 {[%clk 0:00:04]} 35. Nd7+ {[%clk 0:01:39]}  Ke6 {[%clk 0:00:03]} 36. Ncb6 {[%clk 0:01:40]}  Rch8 {[%clk 0:00:03]} 37. Nxc5+ {[%clk 0:01:40]}  Kf6 {[%clk 0:00:01]} 38. Nd5+ {[%clk 0:01:41]}  Ke5 {[%clk 0:00:02]} 39. Nxe7 {[%clk 0:01:41]}  Rxf2+ {[%clk 0:00:02]} 40. Kxf2 {[%clk 0:01:20]}  Rh2+ {[%clk 0:00:02]} 41. Kg1 {[%clk 0:01:19]}  Rxc2 {[%clk 0:00:03]} 42. b4 {[%clk 0:01:19]}  f4 {[%clk 0:00:03]} 43. Nc6+ {[%clk 0:01:19]}  Kd5 {[%clk 0:00:03]} 44. Ne7+ {[%clk 0:01:17]}  Kc4 {[%clk 0:00:02]} 45. exf4 {[%clk 0:01:18]}  gxf4 {[%clk 0:00:03]} 46. Rc7 {[%clk 0:01:16]}  Rc1+ {[%clk 0:00:01]} 47. Kg2 {[%clk 0:01:15]}  Kb5 {[%clk 0:00:01]} 48. a4+ {[%clk 0:01:14]}  Kxb4 {[%clk 0:00:00]} 49. Nd3+ {[%clk 0:01:15]} 1-0

[Event "December 19 Late 2023"]
[Site "https://www.chess.com"]
[Date "2023.12.19"]
[Round "5"]
[White "Caruana, Fabiano"]
[Black "Gunduz, Umut Erdem"]
[Result "1-0"]
[Board "15"]
[TimeControl "180+1"]
[WhiteFideId "2020009"]
[BlackFideId "6381383"]
[WhiteElo "2815"]
[BlackElo "2182"]
[WhiteTeam "USA"]
[BlackTeam "TUR"]
[WhiteClock "0:01:35"]
[BlackClock "0:00:05"]

1. f4 {[%clk 0:03:00]}  e5 {[%clk 0:02:39]} 2. fxe5 {[%clk 0:02:59]}  d6 {[%clk 0:02:38]} 3. Nf3 {[%clk 0:02:59]}  dxe5 {[%clk 0:02:35]} 4. Nxe5 {[%clk 0:03:00]}  Bd6 {[%clk 0:02:29]} 5. Nf3 {[%clk 0:03:00]}  Bg4 {[%clk 0:02:26]} 6. e3 {[%clk 0:02:46]}  Nc6 {[%clk 0:02:22]} 7. Bb5 {[%clk 0:02:39]}  Ne7 {[%clk 0:02:15]} 8. O-O {[%clk 0:02:38]}  O-O {[%clk 0:02:13]} 9. Nc3 {[%clk 0:02:36]}  a6 {[%clk 0:02:12]} 10. Be2 {[%clk 0:02:36]}  Ng6 {[%clk 0:02:08]} 11. Ne4 {[%clk 0:02:33]}  Be7 {[%clk 0:02:04]} 12. Nf2 {[%clk 0:02:30]}  Be6 {[%clk 0:02:03]} 13. d4 {[%clk 0:02:30]}  f5 {[%clk 0:01:52]} 14. c4 {[%clk 0:02:30]}  Bf7 {[%clk 0:01:52]} 15. Bd2 {[%clk 0:02:27]}  Bf6 {[%clk 0:01:50]} 16. Bc3 {[%clk 0:02:25]}  Re8 {[%clk 0:01:48]} 17. Qd2 {[%clk 0:02:22]}  Qe7 {[%clk 0:01:43]} 18. d5 {[%clk 0:02:22]}  Nce5 {[%clk 0:01:41]} 19. Nd4 {[%clk 0:02:21]}  Qd7 {[%clk 0:01:21]} 20. Nh3 {[%clk 0:02:21]}  f4 {[%clk 0:00:55]} 21. Nxf4 {[%clk 0:02:18]}  Nxf4 {[%clk 0:00:55]} 22. exf4 {[%clk 0:02:17]}  Ng4 {[%clk 0:00:52]} 23. f5 {[%clk 0:02:10]}  Ne5 {[%clk 0:00:39]} 24. Ne6 {[%clk 0:02:09]}  c6 {[%clk 0:00:38]} 25. Rad1 {[%clk 0:02:05]}  cxd5 {[%clk 0:00:37]} 26. cxd5 {[%clk 0:02:06]}  Rac8 {[%clk 0:00:34]} 27. Kh1 {[%clk 0:02:03]}  b5 {[%clk 0:00:32]} 28. Qf4 {[%clk 0:02:01]}  Qd6 {[%clk 0:00:30]} 29. Bb4 {[%clk 0:01:58]}  Qb6 {[%clk 0:00:29]} 30. Qg3 {[%clk 0:01:50]}  Nc4 {[%clk 0:00:25]} 31. Bc3 {[%clk 0:01:42]}  Bxc3 {[%clk 0:00:18]} 32. bxc3 {[%clk 0:01:43]}  Bxe6 {[%clk 0:00:15]} 33. fxe6 {[%clk 0:01:43]}  Ne3 {[%clk 0:00:15]} 34. Rf7 {[%clk 0:01:44]}  g6 {[%clk 0:00:14]} 35. Qe5 {[%clk 0:01:43]}  Nf5 {[%clk 0:00:13]} 36. Rxf5 {[%clk 0:01:39]}  gxf5 {[%clk 0:00:14]} 37. Rd3 {[%clk 0:01:36]}  Rc4 {[%clk 0:00:05]} 38. Rg3+ {[%clk 0:01:35]} 1-0

[Event "December 19 Late 2023"]
[Site "https://www.chess.com"]
[Date "2023.12.19"]
[Round "5"]
[White "Fedoseev, Vladimir"]
[Black "Boyer, Mahel"]
[Result "1-0"]
[Board "16"]
[TimeControl "180+1"]
[WhiteFideId "24130737"]
[BlackFideId "45102422"]
[WhiteElo "2719"]
[BlackElo "2449"]
[WhiteTeam "SLO"]
[BlackTeam "FRA"]
[WhiteClock "0:00:22"]
[BlackClock "0:00:02"]

1. e4 {[%clk 0:02:58]}  Nc6 {[%clk 0:02:58]} 2. d4 {[%clk 0:02:52]}  d5 {[%clk 0:02:58]} 3. e5 {[%clk 0:02:43]}  Bf5 {[%clk 0:02:56]} 4. c3 {[%clk 0:02:42]}  e6 {[%clk 0:02:56]} 5. Bd3 {[%clk 0:02:39]}  Nge7 {[%clk 0:02:57]} 6. Ne2 {[%clk 0:02:38]}  h5 {[%clk 0:02:56]} 7. Bg5 {[%clk 0:02:36]}  Qd7 {[%clk 0:02:57]} 8. h4 {[%clk 0:02:34]}  Bxd3 {[%clk 0:02:56]} 9. Qxd3 {[%clk 0:02:34]}  Nf5 {[%clk 0:02:57]} 10. Nd2 {[%clk 0:02:34]}  Be7 {[%clk 0:02:57]} 11. Nf3 {[%clk 0:02:33]}  f6 {[%clk 0:02:58]} 12. Bf4 {[%clk 0:02:30]}  O-O-O {[%clk 0:02:58]} 13. b4 {[%clk 0:02:24]}  fxe5 {[%clk 0:02:55]} 14. Bxe5 {[%clk 0:02:24]}  Bf6 {[%clk 0:02:46]} 15. b5 {[%clk 0:02:14]}  Na5 {[%clk 0:02:47]} 16. a4 {[%clk 0:02:12]}  Nd6 {[%clk 0:02:47]} 17. Nf4 {[%clk 0:02:09]}  Ne4 {[%clk 0:02:41]} 18. O-O {[%clk 0:02:05]}  Qe8 {[%clk 0:02:32]} 19. Rfe1 {[%clk 0:02:03]}  Rf8 {[%clk 0:02:31]} 20. Rxe4 {[%clk 0:02:00]}  dxe4 {[%clk 0:02:32]} 21. Qxe4 {[%clk 0:02:01]}  Nc4 {[%clk 0:02:30]} 22. a5 {[%clk 0:01:38]}  Qxb5 {[%clk 0:02:30]} 23. Nxe6 {[%clk 0:01:37]}  Bxe5 {[%clk 0:02:24]} 24. Nxd8 {[%clk 0:01:29]}  Rxd8 {[%clk 0:00:52]} 25. dxe5 {[%clk 0:01:26]}  Nxa5 {[%clk 0:00:51]} 26. Nd4 {[%clk 0:01:22]}  Qd5 {[%clk 0:00:48]} 27. Qf5+ {[%clk 0:01:22]}  Kb8 {[%clk 0:00:48]} 28. Qxh5 {[%clk 0:01:13]}  Nc4 {[%clk 0:00:43]} 29. Re1 {[%clk 0:01:12]}  a5 {[%clk 0:00:29]} 30. Qg5 {[%clk 0:01:03]}  Re8 {[%clk 0:00:28]} 31. e6 {[%clk 0:00:55]}  Qxg5 {[%clk 0:00:27]} 32. hxg5 {[%clk 0:00:54]}  a4 {[%clk 0:00:19]} 33. f4 {[%clk 0:00:54]}  Nd6 {[%clk 0:00:13]} 34. g4 {[%clk 0:00:49]}  g6 {[%clk 0:00:12]} 35. Nf3 {[%clk 0:00:38]}  a3 {[%clk 0:00:07]} 36. Nh4 {[%clk 0:00:37]}  a2 {[%clk 0:00:06]} 37. f5 {[%clk 0:00:37]}  gxf5 {[%clk 0:00:04]} 38. gxf5 {[%clk 0:00:38]}  Nxf5 {[%clk 0:00:05]} 39. Nxf5 {[%clk 0:00:37]}  Rxe6 {[%clk 0:00:06]} 40. Ra1 {[%clk 0:00:35]}  Re5 {[%clk 0:00:06]} 41. Rxa2 {[%clk 0:00:27]}  Rxf5 {[%clk 0:00:07]} 42. Rg2 {[%clk 0:00:28]}  Rf7 {[%clk 0:00:04]} 43. Kh2 {[%clk 0:00:27]}  Rg7 {[%clk 0:00:02]} 44. Kh3 {[%clk 0:00:27]}  Ka7 {[%clk 0:00:03]} 45. Kg4 {[%clk 0:00:27]}  Kb6 {[%clk 0:00:03]} 46. Kf5 {[%clk 0:00:27]}  Rf7+ {[%clk 0:00:02]} 47. Ke6 {[%clk 0:00:27]}  Rf8 {[%clk 0:00:01]} 48. g6 {[%clk 0:00:27]}  Kc5 {[%clk 0:00:02]} 49. Rg4 {[%clk 0:00:27]}  b5 {[%clk 0:00:01]} 50. g7 {[%clk 0:00:27]}  Rb8 {[%clk 0:00:01]} 51. g8=Q {[%clk 0:00:26]}  Rxg8 {[%clk 0:00:01]} 52. Rxg8 {[%clk 0:00:26]}  Kc4 {[%clk 0:00:02]} 53. Rc8 {[%clk 0:00:21]}  c5 {[%clk 0:00:02]} 54. Kd6 {[%clk 0:00:21]}  Kxc3 {[%clk 0:00:02]} 55. Kxc5 {[%clk 0:00:21]}  b4 {[%clk 0:00:02]} 56. Kb5+ {[%clk 0:00:22]}  Kb3 {[%clk 0:00:03]} 57. Rc4 {[%clk 0:00:22]}  Ka3 {[%clk 0:00:02]} 58. Rxb4 {[%clk 0:00:22]} 1-0

[Event "December 19 Late 2023"]
[Site "https://www.chess.com"]
[Date "2023.12.19"]
[Round "5"]
[White "Manukyan, Sargis A."]
[Black "Makarian, Rudik"]
[Result "0-1"]
[Board "20"]
[TimeControl "180+1"]
[WhiteFideId "13303970"]
[BlackFideId "44105681"]
[WhiteElo "2186"]
[BlackElo "2540"]
[WhiteTeam "ARM"]
[BlackTeam "FID"]
[WhiteClock "0:00:00"]
[BlackClock "0:00:22"]

1. d4 {[%clk 0:03:00]}  g6 {[%clk 0:03:00]} 2. c4 {[%clk 0:03:01]}  Bg7 {[%clk 0:03:01]} 3. Nc3 {[%clk 0:03:02]}  c5 {[%clk 0:03:02]} 4. d5 {[%clk 0:03:00]}  Bxc3+ {[%clk 0:03:02]} 5. bxc3 {[%clk 0:03:01]}  f5 {[%clk 0:03:02]} 6. Nf3 {[%clk 0:03:00]}  d6 {[%clk 0:03:02]} 7. Bg5 {[%clk 0:02:55]}  Qa5 {[%clk 0:03:02]} 8. Qd2 {[%clk 0:02:56]}  Nd7 {[%clk 0:03:01]} 9. h4 {[%clk 0:02:55]}  Ngf6 {[%clk 0:03:01]} 10. Bxf6 {[%clk 0:02:53]}  Nxf6 {[%clk 0:03:01]} 11. Rc1 {[%clk 0:02:48]}  Ne4 {[%clk 0:02:56]} 12. Qc2 {[%clk 0:02:48]}  e5 {[%clk 0:02:56]} 13. Ng5 {[%clk 0:02:44]}  Nxg5 {[%clk 0:02:49]} 14. hxg5 {[%clk 0:02:45]}  Bd7 {[%clk 0:02:49]} 15. e3 {[%clk 0:02:35]}  Qd8 {[%clk 0:02:47]} 16. f4 {[%clk 0:02:34]}  Qe7 {[%clk 0:02:47]} 17. Kf2 {[%clk 0:02:33]}  O-O-O {[%clk 0:02:47]} 18. g3 {[%clk 0:02:32]}  Rde8 {[%clk 0:02:43]} 19. Qd2 {[%clk 0:02:32]}  h6 {[%clk 0:02:24]} 20. gxh6 {[%clk 0:02:30]}  Qf8 {[%clk 0:02:24]} 21. Bg2 {[%clk 0:02:16]}  Rxh6 {[%clk 0:02:24]} 22. Rxh6 {[%clk 0:02:17]}  Qxh6 {[%clk 0:02:24]} 23. Rh1 {[%clk 0:02:18]}  Qg7 {[%clk 0:02:25]} 24. Qc1 {[%clk 0:02:14]}  Kb8 {[%clk 0:02:20]} 25. Bf3 {[%clk 0:02:11]}  b6 {[%clk 0:02:12]} 26. Rh2 {[%clk 0:02:06]}  Bc8 {[%clk 0:02:10]} 27. Bd1 {[%clk 0:01:46]}  g5 {[%clk 0:02:03]} 28. Ba4 {[%clk 0:01:42]}  Rg8 {[%clk 0:02:03]} 29. fxe5 {[%clk 0:01:39]}  Qxe5 {[%clk 0:02:01]} 30. Rh7 {[%clk 0:01:32]}  f4 {[%clk 0:01:38]} 31. exf4 {[%clk 0:01:24]}  Qe4 {[%clk 0:01:31]} 32. Bc2 {[%clk 0:01:12]}  Qxc4 {[%clk 0:01:29]} 33. Qe3 {[%clk 0:00:41]}  Qxa2 {[%clk 0:01:13]} 34. Qe2 {[%clk 0:00:22]}  gxf4 {[%clk 0:01:08]} 35. gxf4 {[%clk 0:00:19]}  Bf5 {[%clk 0:00:50]} 36. Bxf5 {[%clk 0:00:10]}  Rg2+ {[%clk 0:00:49]} 37. Kxg2 {[%clk 0:00:10]}  Qxe2+ {[%clk 0:00:49]} 38. Kg3 {[%clk 0:00:11]}  b5 {[%clk 0:00:40]} 39. Rh8+ {[%clk 0:00:07]}  Kc7 {[%clk 0:00:40]} 40. Rc8+ {[%clk 0:00:06]}  Kb7 {[%clk 0:00:40]} 41. Bd7 {[%clk 0:00:07]}  Qd3+ {[%clk 0:00:32]} 42. Kg4 {[%clk 0:00:07]}  Qg6+ {[%clk 0:00:30]} 43. Kf3 {[%clk 0:00:06]}  Qf7 {[%clk 0:00:26]} 44. Be6 {[%clk 0:00:06]}  Qg7 {[%clk 0:00:25]} 45. f5 {[%clk 0:00:04]}  Qxc3+ {[%clk 0:00:22]} 46. Kg4 {[%clk 0:00:05]}  b4 {[%clk 0:00:22]} 47. Kg5 {[%clk 0:00:03]}  Qg7+ {[%clk 0:00:21]} 48. Kf4 {[%clk 0:00:00]}  b3 {[%clk 0:00:22]} 0-1

[Event "December 19 Late 2023"]
[Site "https://www.chess.com"]
[Date "2023.12.19"]
[Round "5"]
[White "User234564"]
[Black "Sanal, Vahap"]
[Result "0-1"]
[Board "22"]
[TimeControl "180+1"]
[BlackFideId "6300545"]
[WhiteElo "2653"]
[BlackElo "2637"]
[BlackTeam "TUR"]
[WhiteClock "0:00:41"]
[BlackClock "0:02:37"]

1. d4 {[%clk 0:02:56]}  d6 {[%clk 0:02:59]} 2. e4 {[%clk 0:02:52]}  Nf6 {[%clk 0:02:59]} 3. Nc3 {[%clk 0:02:50]}  e5 {[%clk 0:02:59]} 4. Nf3 {[%clk 0:02:50]}  Nbd7 {[%clk 0:02:59]} 5. Bc4 {[%clk 0:02:50]}  Be7 {[%clk 0:03:00]} 6. O-O {[%clk 0:02:51]}  O-O {[%clk 0:03:00]} 7. Qe2 {[%clk 0:02:48]}  c6 {[%clk 0:03:00]} 8. Rd1 {[%clk 0:02:48]}  exd4 {[%clk 0:02:51]} 9. Nxd4 {[%clk 0:02:48]}  Re8 {[%clk 0:02:51]} 10. a4 {[%clk 0:02:44]}  Bf8 {[%clk 0:02:51]} 11. Be3 {[%clk 0:01:34]}  Nxe4 {[%clk 0:02:45]} 12. Nxe4 {[%clk 0:01:30]}  Rxe4 {[%clk 0:02:46]} 13. Qf3 {[%clk 0:01:25]}  d5 {[%clk 0:02:43]} 14. Bd3 {[%clk 0:01:25]}  Ne5 {[%clk 0:02:43]} 15. Qg3 {[%clk 0:01:24]}  Nxd3 {[%clk 0:02:43]} 16. cxd3 {[%clk 0:01:24]}  Re8 {[%clk 0:02:43]} 17. Bg5 {[%clk 0:01:19]}  Qd6 {[%clk 0:02:39]} 18. Bf4 {[%clk 0:01:18]}  Qg6 {[%clk 0:02:40]} 19. Re1 {[%clk 0:01:12]}  Bd7 {[%clk 0:02:40]} 20. h3 {[%clk 0:00:52]}  Bb4 {[%clk 0:02:39]} 21. Red1 {[%clk 0:00:47]}  Qxg3 {[%clk 0:02:38]} 22. fxg3 {[%clk 0:00:41]}  Bc5 {[%clk 0:02:37]} 0-1

[Event "December 19 Late 2023"]
[Site "https://www.chess.com"]
[Date "2023.12.19"]
[Round "5"]
[White "Svane, Rasmus"]
[Black "Janaszak, Dawid"]
[Result "1-0"]
[Board "24"]
[TimeControl "180+1"]
[WhiteFideId "4657101"]
[BlackFideId "1119206"]
[WhiteElo "2597"]
[BlackElo "2218"]
[WhiteTeam "GER"]
[BlackTeam "POL"]
[WhiteClock "0:01:02"]
[BlackClock "0:00:04"]

1. Nf3 {[%clk 0:02:57]}  g6 {[%clk 0:02:59]} 2. e4 {[%clk 0:02:57]}  c5 {[%clk 0:02:58]} 3. Ke2 {[%clk 0:02:56]}  Bg7 {[%clk 0:02:58]} 4. g3 {[%clk 0:02:54]}  d5 {[%clk 0:02:53]} 5. d3 {[%clk 0:02:54]}  Nf6 {[%clk 0:02:51]} 6. Nbd2 {[%clk 0:02:54]}  Nc6 {[%clk 0:02:49]} 7. Bg2 {[%clk 0:02:53]}  e5 {[%clk 0:02:28]} 8. Re1 {[%clk 0:02:52]}  O-O {[%clk 0:02:24]} 9. Kf1 {[%clk 0:02:53]}  dxe4 {[%clk 0:02:18]} 10. dxe4 {[%clk 0:02:53]}  b6 {[%clk 0:02:09]} 11. c3 {[%clk 0:02:53]}  Qd3+ {[%clk 0:02:05]} 12. Kg1 {[%clk 0:02:53]}  Rd8 {[%clk 0:02:04]} 13. Bf1 {[%clk 0:02:53]}  Qd7 {[%clk 0:02:02]} 14. Qc2 {[%clk 0:02:53]}  Bb7 {[%clk 0:01:59]} 15. Nc4 {[%clk 0:02:50]}  Qe6 {[%clk 0:01:51]} 16. Bg5 {[%clk 0:02:48]}  h6 {[%clk 0:01:46]} 17. Bxf6 {[%clk 0:02:48]}  Bxf6 {[%clk 0:01:47]} 18. Ne3 {[%clk 0:02:48]}  Ne7 {[%clk 0:01:46]} 19. Kg2 {[%clk 0:02:36]}  Bg7 {[%clk 0:01:44]} 20. Bc4 {[%clk 0:02:35]}  Qc6 {[%clk 0:01:38]} 21. Ng4 {[%clk 0:02:22]}  Qc7 {[%clk 0:01:27]} 22. Qb3 {[%clk 0:02:20]}  Nc6 {[%clk 0:01:18]} 23. Qc2 {[%clk 0:02:01]}  h5 {[%clk 0:01:15]} 24. Ne3 {[%clk 0:02:01]}  Ne7 {[%clk 0:01:13]} 25. Rad1 {[%clk 0:02:01]}  Bh6 {[%clk 0:01:08]} 26. Nd5 {[%clk 0:01:59]}  Nxd5 {[%clk 0:00:59]} 27. Bxd5 {[%clk 0:02:00]}  Bxd5 {[%clk 0:00:56]} 28. exd5 {[%clk 0:02:01]}  Bg7 {[%clk 0:00:51]} 29. Ng5 {[%clk 0:02:01]}  Qe7 {[%clk 0:00:44]} 30. h4 {[%clk 0:01:58]}  Rd7 {[%clk 0:00:43]} 31. c4 {[%clk 0:01:56]}  Rad8 {[%clk 0:00:35]} 32. Qe2 {[%clk 0:01:54]}  Bh6 {[%clk 0:00:32]} 33. Ne4 {[%clk 0:01:53]}  Bg7 {[%clk 0:00:28]} 34. a3 {[%clk 0:01:52]}  Kh8 {[%clk 0:00:23]} 35. Rd3 {[%clk 0:01:51]}  Kg8 {[%clk 0:00:24]} 36. Red1 {[%clk 0:01:51]}  a6 {[%clk 0:00:23]} 37. Qd2 {[%clk 0:01:40]}  Kh8 {[%clk 0:00:22]} 38. b4 {[%clk 0:01:40]}  Rc8 {[%clk 0:00:18]} 39. bxc5 {[%clk 0:01:40]}  bxc5 {[%clk 0:00:19]} 40. d6 {[%clk 0:01:40]}  Qe6 {[%clk 0:00:18]} 41. Rd5 {[%clk 0:01:41]}  Qf5 {[%clk 0:00:18]} 42. Nxc5 {[%clk 0:01:38]}  Rdd8 {[%clk 0:00:18]} 43. Nb7 {[%clk 0:01:13]}  Rd7 {[%clk 0:00:17]} 44. Na5 {[%clk 0:01:14]}  Qe6 {[%clk 0:00:07]} 45. c5 {[%clk 0:01:14]}  Kh7 {[%clk 0:00:04]} 46. c6 {[%clk 0:01:14]}  Rdd8 {[%clk 0:00:05]} 47. Nb7 {[%clk 0:01:09]}  Bh6 {[%clk 0:00:05]} 48. Nxd8 {[%clk 0:01:06]}  Rxd8 {[%clk 0:00:05]} 49. Qc2 {[%clk 0:01:03]}  e4 {[%clk 0:00:04]} 50. c7 {[%clk 0:01:03]}  Rc8 {[%clk 0:00:04]} 51. d7 {[%clk 0:01:03]}  e3 {[%clk 0:00:04]} 52. dxc8=Q {[%clk 0:01:02]} 1-0